bitfinex/quotes_ETHUSD_20250223
["timestamp","ask_amount","ask_price","bid_price","bid_amount"]
[1740285360745,0.7659,2757.3,2757.0,3.62701]
[1740285361406,0.17141746,2757.2,2757.1,3.62699]
[1740285361850,0.8232,2757.5,2757.1,3.62699]
[1740285362462,0.8232,2757.5,2757.2,3.6268]
[1740285362671,0.8232,2757.9,2757.3,3.62665]
[1740285362809,0.8232,2757.9,2757.2,3.88486]
[1740285363340,0.8232,2757.9,2757.2,4.79440412]
[1740285363516,4.4492,2757.9,2757.2,8.42126412]
[1740285364269,0.8232,2757.9,2757.3,3.62673]
[1740285364567,0.8232,2757.9,2757.4,3.62653]
[1740285364907,0.17167877,2757.8,2757.2,4.79437412]
[1740285365170,0.17167877,2757.8,2757.3,0.77943741]
[1740285367336,0.17167877,2757.8,2757.3,4.40615741]
[1740285368646,0.17167877,2757.8,2757.3,4.40608741]
[1740285368937,0.17167877,2757.8,2757.4,3.62659]
[1740285369118,0.17167877,2757.8,2757.3,4.40608741]
[1740285369319,0.17167877,2757.8,2757.4,0.46640874]
[1740285370820,0.17167877,2757.8,2757.5,3.62644]
[1740285371844,0.17167877,2757.8,2757.4,4.89887874]
[1740285372452,0.17167877,2757.8,2757.4,0.46640874]
[1740285375818,0.17167877,2757.8,2757.4,4.09299874]
[1740285376018,0.17167877,2757.8,2757.5,0.84990862]
[1740285376754,0.17167877,2757.8,2757.5,4.47635862]
[1740285377853,0.17167877,2757.8,2757.6,3.62633]
[1740285378444,0.17167877,2757.8,2757.5,4.47635862]
[1740285378821,0.17167877,2757.8,2757.5,8.10273862]
[1740285379321,0.17167877,2757.8,2757.5,4.47628862]
[1740285380052,0.17167877,2757.8,2757.5,4.47625862]
[1740285380432,0.17167877,2757.8,2757.6,3.6263]
[1740285380830,0.17167877,2757.8,2757.6,4.64751958]
[1740285383367,0.17167877,2757.8,2757.7,3.62621]
[1740285383542,0.17167877,2757.8,2757.6,4.64757958]
[1740285383940,0.17167877,2757.8,2757.6,1.02125958]
[1740285384265,0.17167877,2757.8,2757.6,4.64758958]
[1740285384568,0.17167877,2757.8,2757.7,4.45361496]
[1740285385264,0.17167877,2757.8,2757.7,0.82740496]
[1740285388764,0.17167877,2757.8,2757.7,4.45361496]
[1740285389365,0.7749,2758.5,2757.8,3.62599]
[1740285389572,0.7749,2758.5,2757.7,4.45361496]
[1740285389869,0.17222735,2758.4,2757.9,3.62593]
[1740285392029,0.17222735,2758.4,2757.8,0.60970234]
[1740285392232,0.17222735,2758.4,2757.8,4.23576234]
[1740285395373,0.17222735,2758.4,2757.9,3.62588]
[1740285395868,0.17222735,2758.4,2757.8,7.86174234]
[1740285396166,0.17222735,2758.4,2757.9,0.78617423]
[1740285396962,0.17222735,2758.4,2757.8,3.62598]
[1740285397446,0.17222735,2758.4,2757.7,3.62611]
[1740285397776,0.8276,2758.3,2757.6,6.62624]
[1740285398151,0.17216034,2758.2,2757.7,3.6262]
[1740285399674,0.17216034,2758.2,2757.6,6.62627]
[1740285399851,0.17216034,2758.2,2757.7,0.739727]
[1740285400463,0.8044,2758.1,2757.7,0.739727]
[1740285400868,0.17209333,2758.0,2757.7,0.739727]
[1740285406794,0.17209333,2758.0,2757.7,4.365907]
[1740285407798,0.8044,2758.3,2757.8,3.62602]
[1740285408082,0.17287503,2757.9,2757.8,4.8316727]
[1740285408285,0.8044,2758.3,2757.8,4.8316727]
[1740285408519,0.8044,2758.3,2757.9,3.62585]
[1740285408690,0.17297556,2758.2,2757.9,3.62585]
[1740285409095,0.8044,2758.3,2757.9,3.62585]
[1740285409407,0.8044,2758.3,2757.9,0.91972497]
[1740285409606,0.1729564,2758.2,2757.9,4.54563497]
[1740285410079,0.8044,2758.3,2757.9,4.54563497]
[1740285410254,0.17294206,2758.1,2757.9,4.54563497]
[1740285410450,0.8044,2758.3,2757.9,4.54563497]
[1740285410970,0.17297556,2758.2,2757.9,4.54563497]
[1740285411173,0.8044,2758.3,2758.0,0.8171655]
[1740285411371,0.17297556,2758.2,2758.0,0.8171655]
[1740285411660,0.8044,2758.3,2758.0,0.8171655]
[1740285411862,0.17294206,2758.1,2758.0,0.8171655]
[1740285412060,0.8044,2758.3,2757.8,3.62602]
[1740285412289,0.17294206,2758.1,2757.8,3.62602]
[1740285412597,0.17290855,2758.0,2757.9,3.62582]
[1740285412956,0.8044,2758.3,2757.9,3.62582]
[1740285413155,0.17296598,2758.2,2757.8,3.62602]
[1740285413481,0.8044,2758.3,2757.9,0.362602]
[1740285413796,0.8044,2758.3,2757.9,3.988542]
[1740285413997,0.17297556,2758.2,2757.9,3.988542]
[1740285414386,0.8044,2758.3,2757.9,3.988542]
[1740285414694,0.17309585,2758.2,2757.9,3.988542]
[1740285414889,0.17309585,2758.2,2758.0,0.7614542]
[1740285415099,0.8044,2758.3,2758.0,0.7614542]
[1740285415594,0.17310543,2758.2,2758.0,0.7614542]
[1740285415976,0.8044,2758.3,2758.0,0.7614542]
[1740285416186,0.17310543,2758.2,2758.0,0.7614542]
[1740285416388,0.8044,2758.3,2758.0,4.3872342]
[1740285416700,0.17309585,2758.2,2758.0,0.7614542]
[1740285417067,0.8044,2758.3,2758.0,0.7614542]
[1740285417268,0.17306234,2758.1,2758.0,0.7614542]
[1740285417465,0.8044,2758.3,2758.0,0.7614542]
[1740285417671,0.17306234,2758.1,2757.8,6.62606]
[1740285417969,0.17303841,2758.0,2757.8,6.62606]
[1740285418169,0.8044,2758.3,2757.8,6.62606]
[1740285418399,0.17310543,2758.2,2757.8,6.62606]
[1740285418900,0.8044,2758.3,2757.8,6.62606]
[1740285419101,0.17307192,2758.1,2757.8,7.92401884]
[1740285419281,0.17310543,2758.2,2757.8,7.92401884]
[1740285419602,0.8044,2758.3,2757.8,7.92401884]
[1740285419814,0.17307192,2758.1,2757.8,7.92401884]
[1740285419966,0.8044,2758.3,2757.8,7.92401884]
[1740285420173,0.17310543,2758.2,2757.9,1.23761388]
[1740285420706,0.17310543,2758.2,2757.9,4.86355388]
[1740285420901,0.8044,2758.3,2757.9,1.23761388]
[1740285421102,0.17307192,2758.1,2757.9,1.23761388]
[1740285421296,0.8044,2758.3,2757.9,1.23761388]
[1740285421495,0.17303841,2758.0,2757.9,1.23761388]
[1740285421677,0.8044,2758.3,2757.9,1.23761388]
[1740285422185,0.17310543,2758.2,2757.9,1.23761388]
[1740285422381,0.8044,2758.3,2757.9,1.23761388]
[1740285422573,0.17311501,2758.2,2757.7,7.45219]
[1740285423370,2.44360841,2758.1,2757.4,6.1457]
[1740285423592,2.44360841,2758.1,2757.4,5.648]
[1740285423593,0.8002,2757.8,2757.4,5.648]
[1740285423878,0.17308109,2757.7,2757.5,3.0]
[1740285424209,0.8002,2757.8,2757.5,3.0]
[1740285424670,0.8002,2758.2,2757.5,4.30540474]
[1740285424876,0.17310984,2757.7,2757.6,7.38204]
[1740285425106,0.8002,2758.2,2757.9,3.62593]
[1740285425312,1.64340841,2758.7,2758.0,3.62574]
[1740285425474,0.17313116,2758.1,2758.0,3.62575]
[1740285425679,0.8002,2758.6,2758.2,3.62547]
[1740285426109,0.17325559,2758.5,2758.3,3.62541]
[1740285426490,0.17325559,2758.5,2758.3,3.62535]
[1740285426689,0.17325559,2758.5,2758.3,4.35045]
[1740285427290,0.17325559,2758.5,2758.3,0.7251]
[1740285428579,0.1732651,2758.4,2758.3,0.7251]
[1740285430314,0.1732651,2758.4,2758.3,4.35052]
[1740285430615,0.1732651,2758.4,2758.3,0.7251]
[1740285430815,0.1732651,2758.4,2757.9,0.725209]
[1740285431041,4.40934,2758.3,2757.8,0.258]
[1740285431184,0.7839,2758.3,2757.8,3.258]
[1740285431384,0.1733651,2758.2,2757.8,0.258]
[1740285431607,0.7839,2758.3,2757.9,3.62585]
[1740285431797,0.17334117,2758.1,2758.0,4.014165]
[1740285432193,0.7839,2758.3,2758.0,4.014165]
[1740285432409,0.17337468,2758.2,2758.0,0.388385]
[1740285432613,0.17337468,2758.2,2758.0,4.014175]
[1740285432914,0.7839,2758.3,2758.0,4.014175]
[1740285433123,0.17329152,2758.1,2758.0,4.014175]
[1740285433323,0.7839,2758.3,2758.0,4.014175]
[1740285433622,0.17332503,2758.2,2758.0,4.014175]
[1740285434223,0.17329152,2758.1,2758.0,0.388385]
[1740285434521,0.17329152,2758.1,2757.9,3.62587]
[1740285434715,0.7839,2758.3,2757.9,3.62587]
[1740285434926,0.17326759,2758.0,2757.9,3.62587]
[1740285435103,0.7839,2758.3,2757.9,3.62587]
[1740285435299,0.17326759,2758.0,2757.9,3.62587]
[1740285435505,0.7839,2758.3,2757.9,4.676877]
[1740285435826,0.7839,2758.3,2757.9,1.051007]
[1740285436030,0.17333461,2758.2,2757.9,3.62585]
[1740285436322,0.17333461,2758.2,2758.0,3.62581]
[1740285436526,0.7839,2758.3,2758.0,3.62581]
[1740285436689,0.1733011,2758.1,2757.9,3.62585]
[1740285436895,0.7839,2758.3,2757.9,3.62585]
[1740285437096,0.17326759,2758.0,2757.9,3.62585]
[1740285437290,0.7839,2758.3,2757.9,4.676847]
[1740285437493,0.17326759,2758.0,2757.8,3.88401]
[1740285437823,0.7839,2758.3,2757.8,0.258]
[1740285438005,0.7839,2758.3,2758.0,3.62578]
[1740285439429,0.17334419,2758.2,2758.0,3.62578]
[1740285439827,0.7839,2758.3,2758.0,3.62578]
[1740285440126,0.17331068,2758.1,2757.9,3.62594]
[1740285440297,0.7839,2758.3,2757.9,3.62594]
[1740285440499,0.17327718,2758.0,2757.9,3.62594]
[1740285441227,0.17327718,2758.0,2757.9,4.676947]
[1740285443043,0.34656394,2758.0,2757.9,4.676947]
[1740285443204,0.17327718,2758.0,2757.9,4.676947]
[1740285443404,0.34656394,2758.0,2757.9,4.676947]
[1740285444535,0.34656394,2758.0,2757.9,1.051007]
[1740285444735,0.34656394,2758.0,2757.8,0.258]
[1740285445129,0.34656394,2758.0,2757.8,3.88398]
[1740285446061,0.34656394,2758.0,2757.8,0.258]
[1740285446341,0.34656394,2758.0,2757.9,3.62594]
[1740285447725,0.34656394,2758.0,2757.9,4.45774]
[1740285448041,0.34656394,2758.0,2757.9,5.591921]
[1740285449237,0.34656394,2758.0,2757.9,8.591921]
[1740285449406,0.17327718,2758.0,2757.9,8.591921]
[1740285450641,0.17327718,2758.0,2757.9,10.23437505]
[1740285458027,0.17327718,2758.0,2757.9,15.62437505]
[1740285465768,7.18e-06,2758.0,2757.9,15.62437505]
[1740285466168,0.17325559,2758.5,2758.4,4.41639]
[1740285466373,0.17325559,2758.5,2758.4,9.86302305]
[1740285467236,5.59e-06,2758.5,2758.4,11.5054771]
[1740285467439,0.005,2758.9,2758.8,3.62476]
[1740285467674,0.005,2758.9,2758.8,6.31531405]
[1740285469276,0.005,2758.9,2758.8,5.52421405]
[1740285470258,0.005,2758.9,2758.8,6.19341436]
[1740285476387,0.005,2758.9,2758.8,7.01981436]
[1740285478689,0.005,2758.9,2758.8,10.01981436]
[1740285483288,0.005,2758.9,2758.8,9.19341436]
[1740285484189,0.005,2758.9,2758.8,8.93641436]
[1740285484360,0.005,2758.9,2758.8,3.62476]
[1740285484361,0.7665,2758.9,2758.8,3.62476]
[1740285484565,0.7665,2758.9,2758.8,3.88176]
[1740285485488,0.90935741,2758.9,2758.8,3.88176]
[1740285489465,0.90935741,2758.9,2758.7,3.88187]
[1740285491198,0.90935741,2758.9,2758.7,0.257]
[1740285491378,0.90935741,2758.9,2758.6,0.257]
[1740285492269,0.90935741,2758.9,2758.4,0.99847236]
[1740285492270,0.90935741,2758.9,2758.4,0.257]
[1740285492468,0.90935741,2758.9,2758.4,3.8822]
[1740285492700,0.90935741,2758.9,2758.6,3.62501]
[1740285493397,0.90935741,2758.9,2758.4,5.52472405]
[1740285494502,0.90935741,2758.9,2758.5,3.62505]
[1740285495074,0.90935741,2758.9,2758.4,1.89945405]
[1740285495277,0.8099,2758.8,2758.4,0.257]
[1740285495589,0.14238161,2758.7,2758.3,5.39]
[1740285495794,0.8099,2758.6,2758.3,5.647]
[1740285495997,0.14231462,2758.5,2758.3,5.647]
[1740285496907,0.8099,2758.4,2758.1,0.257]
[1740285497094,0.8099,2758.4,2758.1,3.88261]
[1740285497813,0.1418003,2758.3,2758.1,6.26189557]
[1740285499175,0.8099,2758.4,2758.1,6.26189557]
[1740285499687,0.1418003,2758.3,2758.1,6.26189557]
[1740285500812,0.1418003,2758.3,2758.1,2.63628557]
[1740285500975,0.1418003,2758.3,2757.8,5.53466665]
[1740285501175,0.8175,2758.2,2757.9,3.88292]
[1740285501381,0.8175,2758.2,2758.0,5.26819405]
[1740285501910,0.14173329,2758.1,2758.0,5.26819405]
[1740285502315,0.8175,2758.2,2758.1,3.62568]
[1740285502615,0.95911323,2758.2,2758.1,3.62568]
[1740285503194,0.8175,2758.2,2758.1,3.62568]
[1740285503397,0.8175,2758.2,2757.9,3.62592]
[1740285503594,0.8175,2758.2,2758.0,3.62579]
[1740285504114,0.14141946,2758.1,2758.0,3.62579]
[1740285504410,0.8175,2758.2,2758.0,3.62579]
[1740285504810,0.14141946,2758.1,2757.9,0.257]
[1740285505181,0.14138595,2758.0,2757.9,0.257]
[1740285505383,0.8175,2758.2,2757.9,0.257]
[1740285505898,0.8175,2758.2,2757.9,3.88292]
[1740285506417,0.14141946,2758.1,2757.9,3.88292]
[1740285506711,0.14141946,2758.1,2757.9,0.257]
[1740285509507,0.14141946,2758.1,2757.8,5.26850405]
[1740285509821,0.14141946,2758.1,2757.8,5.52550405]
[1740285510698,0.14141946,2758.1,2757.8,3.88305]
[1740285511392,0.8175,2758.0,2757.8,3.88305]
[1740285511791,0.14135244,2757.9,2757.8,3.88305]
[1740285512524,0.8175,2758.0,2757.8,3.88305]
[1740285512890,0.14135244,2757.9,2757.8,3.88305]
[1740285513118,0.14135244,2757.9,2757.8,4.87213109]
[1740285513323,0.8175,2758.0,2757.9,3.62594]
[1740285513693,0.95888595,2758.0,2757.9,3.62594]
[1740285514403,0.95888595,2758.0,2757.8,6.51458514]
[1740285514825,0.95888595,2758.0,2757.9,3.62594]
[1740285515191,0.14138595,2758.0,2757.9,4.7138902]
[1740285515603,0.7799,2758.5,2758.0,3.62575]
[1740285515808,0.14146654,2758.4,2758.0,3.62575]
[1740285516019,0.14146654,2758.4,2758.1,3.62561]
[1740285516525,0.14146654,2758.4,2758.0,7.25149]
[1740285517426,0.14146654,2758.4,2758.0,8.35591943]
[1740285517929,0.14146654,2758.4,2758.1,3.62567]
[1740285525535,0.14146654,2758.4,2758.0,4.73021943]
[1740285526419,0.14146654,2758.4,2757.8,1.89945405]
[1740285526599,0.7727,2758.3,2757.8,0.257]
[1740285526805,4.39818,2758.3,2757.8,0.257]
[1740285527016,0.14147968,2758.2,2757.8,0.257]
[1740285527218,0.7727,2758.3,2757.8,0.257]
[1740285527417,0.14147968,2758.2,2757.8,0.257]
[1740285527619,0.7727,2758.3,2757.8,0.257]
[1740285527817,0.14147968,2758.2,2757.8,0.257]
[1740285528018,0.7727,2758.3,2757.8,0.257]
[1740285528508,0.14147968,2758.2,2757.8,0.257]
[1740285529029,0.7727,2758.3,2757.8,0.257]
[1740285529030,0.91414617,2758.1,2757.8,0.257]
[1740285540331,0.91414617,2758.1,2757.8,0.88345809]
[1740285540928,0.91414617,2758.1,2757.8,4.50951809]
[1740285543741,0.14144617,2758.1,2757.8,4.50951809]
[1740285543942,0.8085,2758.3,2757.8,4.50951809]
[1740285544142,0.14132584,2758.0,2757.8,5.33641809]
[1740285544346,0.14132584,2758.0,2757.9,0.9701525]
[1740285544750,0.14132584,2758.0,2757.9,4.5960925]
[1740285546749,0.14132584,2758.0,2757.8,4.70992]
[1740285547069,0.8085,2757.9,2757.8,0.257]
[1740285547933,0.94980569,2757.9,2757.8,0.257]
[1740285548368,0.94980569,2757.9,2757.8,3.88307]
[1740285549173,0.14130569,2757.9,2757.8,3.88307]
[1740285549335,0.14132584,2758.0,2757.8,3.88307]
[1740285550770,0.14132584,2758.0,2757.9,3.62594]
[1740285565797,0.14132584,2758.0,2757.9,4.69767309]
[1740285566081,0.14132584,2758.0,2757.9,5.44997309]
[1740285568201,0.14132584,2758.0,2757.9,10.83997309]
[1740285570515,5.84e-06,2758.0,2757.9,13.83997309]
[1740285570685,0.7963,2758.8,2758.1,0.7523]
[1740285571016,0.7963,2759.0,2758.8,3.62476]
[1740285571179,0.7963,2759.0,2758.8,3.88176]
[1740285573775,0.13980786,2758.9,2758.8,3.88176]
[1740285575295,0.005,2758.9,2758.8,3.88176]
[1740285575507,0.005,2758.9,2758.8,4.94590999]
[1740285577614,0.005,2758.9,2758.8,5.70770999]
[1740285582116,0.005,2758.9,2758.8,4.94590999]
[1740285582897,0.005,2758.9,2758.8,10.33590999]
[1740285585814,0.005,2758.9,2758.8,5.39]
[1740285586017,0.7565,2758.9,2758.8,5.647]
[1740285586389,0.87743805,2758.9,2758.8,5.647]
[1740285587489,0.87743805,2758.9,2758.8,5.39]
[1740285587821,0.87743805,2758.9,2758.8,5.647]
[1740285588816,0.87743805,2758.9,2758.8,0.257]
[1740285589418,0.87743805,2758.9,2758.8,3.88176]
[1740285589835,0.7565,2758.9,2758.8,3.88176]
[1740285590126,0.87743805,2758.9,2758.8,3.88176]
[1740285590292,0.87743805,2758.9,2758.8,0.257]
[1740285594934,0.7565,2758.9,2758.8,0.257]
[1740285595528,0.87743805,2758.9,2758.8,0.257]
[1740285596033,0.87743805,2758.9,2758.7,0.257]
[1740285596194,0.7565,2758.9,2758.7,0.257]
[1740285597528,0.7565,2758.9,2758.4,1.90935747]
[1740285597728,0.12117833,2758.8,2758.5,0.257]
[1740285601460,0.12117833,2758.8,2758.5,3.88214]
[1740285601761,0.12117833,2758.8,2758.5,0.257]
[1740285602429,0.12117833,2758.8,2758.5,3.88215]
[1740285602629,0.12117833,2758.8,2758.5,3.88208]
[1740285602833,0.12117833,2758.8,2758.5,3.88207]
[1740285603978,0.12117833,2758.8,2758.5,7.50715]
[1740285604178,0.12117833,2758.8,2758.5,3.88207]
[1740285604341,0.12117833,2758.8,2758.7,3.62489]
[1740285604745,0.005,2758.9,2758.8,3.62476]
[1740285605359,0.005,2758.9,2758.8,5.26721405]
[1740285606980,0.005,2758.9,2758.8,6.06021405]
[1740285609385,0.005,2758.9,2758.8,0.257]
[1740285609675,0.005,2758.9,2758.8,3.88176]
[1740285610098,0.12627856,2758.9,2758.8,0.257]
[1740285610382,0.005,2758.9,2758.8,0.257]
[1740285610580,0.005,2758.9,2758.7,3.62477]
[1740285610886,0.12627856,2758.9,2758.8,3.88176]
[1740285611182,0.005,2758.9,2758.8,3.88176]
[1740285611681,0.12627856,2758.9,2758.8,3.88176]
[1740285611877,0.005,2758.9,2758.8,3.88176]
[1740285612082,0.12627856,2758.9,2758.8,3.88176]
[1740285612283,0.005,2758.9,2758.8,4.90205548]
[1740285612472,0.12627856,2758.9,2758.8,4.90205548]
[1740285612661,0.005,2758.9,2758.8,4.90205548]
[1740285612864,0.12627856,2758.9,2758.8,4.90205548]
[1740285613062,0.005,2758.9,2758.8,4.90205548]
[1740285613265,0.12627856,2758.9,2758.8,4.90205548]
[1740285613464,0.005,2758.9,2758.8,4.90205548]
[1740285613686,0.12627856,2758.9,2758.8,4.90205548]
[1740285613906,0.005,2758.9,2758.8,4.90205548]
[1740285614067,0.12627856,2758.9,2758.8,4.90205548]
[1740285614251,0.005,2758.9,2758.8,4.90205548]
[1740285615262,0.12627856,2758.9,2758.8,4.90205548]
[1740285615593,0.005,2758.9,2758.8,4.90205548]
[1740285615993,0.12627856,2758.9,2758.8,4.90205548]
[1740285616614,0.005,2758.9,2758.8,0.257]
[1740285617616,0.12627856,2758.9,2758.8,0.257]
[1740285620300,0.12627856,2758.9,2758.5,5.39]
[1740285620604,0.8316,2758.8,2758.6,0.257]
[1740285620966,0.1213184,2758.7,2758.6,0.257]
[1740285621670,0.1213184,2758.7,2758.5,5.39]
[1740285621900,0.1213184,2758.7,2758.5,5.647]
[1740285622502,0.1213184,2758.7,2758.5,5.39]
[1740285622663,0.1213184,2758.7,2758.5,5.647]
[1740285624507,0.1213184,2758.7,2758.5,0.257]
[1740285625977,0.1213184,2758.7,2758.6,3.62502]
[1740285626307,0.005,2758.9,2758.6,4.2573874]
[1740285626508,0.005,2758.9,2758.6,3.62502]
[1740285627208,0.005,2758.9,2758.5,8.3064]
[1740285627905,0.005,2758.9,2758.5,8.30635]
[1740285628509,0.005,2758.9,2758.6,3.62493]
[1740285629612,0.12135189,2758.8,2758.6,3.62493]
[1740285632474,0.2002211,2758.8,2758.6,3.62493]
[1740285632902,0.2002211,2758.8,2758.5,3.88205]
[1740285633090,0.55,2758.6,2758.3,0.71976803]
[1740285633292,0.8316,2758.5,2758.1,3.62558]
[1740285633607,0.8316,2758.5,2758.2,3.62545]
[1740285633971,0.20006247,2758.4,2758.2,3.62545]
[1740285639012,0.20006247,2758.4,2758.1,7.4573605]
[1740285639013,0.20006247,2758.4,2758.3,3.62542]
[1740285639692,0.7868,2758.7,2758.4,3.62523]
[1740285640112,0.7868,2758.7,2758.6,3.62502]
[1740285640317,0.7868,2758.7,2758.4,3.6252]
[1740285640616,0.7868,2758.7,2758.5,3.62514]
[1740285641813,0.19987675,2758.6,2758.5,3.62514]
[1740285644784,0.19987675,2758.6,2758.3,3.8824]
[1740285645498,0.19987675,2758.6,2758.4,3.62527]
[1740285646507,0.19987675,2758.6,2758.3,3.8824]
[1740285656744,0.19987675,2758.6,2758.1,7.2003705]
[1740285656745,0.8219,2758.5,2758.1,0.73381508]
[1740285656912,0.8219,2758.5,2758.1,0.99081508]
[1740285657241,0.19978209,2758.4,2758.1,4.61648508]
[1740285657417,0.19978209,2758.4,2758.1,5.44070459]
[1740285658436,0.19978209,2758.4,2758.2,3.62554]
[1740285660738,0.19978209,2758.4,2758.3,3.62542]
[1740285661112,0.89296921,2758.8,2758.4,3.62525]
[1740285661429,0.89296921,2758.8,2758.5,3.62509]
[1740285661639,0.89296921,2758.8,2758.6,3.62493]
[1740285661844,0.89296921,2758.8,2758.7,3.62489]
[1740285661845,0.07886921,2758.8,2758.7,3.62489]
[1740285666849,0.07886921,2758.8,2758.7,4.41669]
[1740285667036,0.07886921,2758.8,2758.7,5.13743556]
[1740285682761,9.21e-06,2758.9,2758.7,13.52743556]
[1740285683065,9.21e-06,2758.9,2758.8,9.06661405]
[1740285683272,9.21e-06,2758.9,2758.8,11.42543585]
[1740285686863,9.21e-06,2758.9,2758.8,16.81543585]
[1740285688746,9.21e-06,2758.9,2758.8,21.87273448]
[1740285699079,0.78410921,2758.9,2758.8,16.68788043]
[1740285699376,0.78410921,2758.9,2758.8,14.32905863]
[1740285701686,0.78410921,2758.9,2758.8,15.97151268]
[1740285703947,9.21e-06,2758.9,2758.8,15.97151268]
[1740285709887,9.21e-06,2758.9,2758.8,16.72211268]
[1740285710049,9.21e-06,2758.9,2758.8,19.72211268]
[1740285710250,9.21e-06,2758.9,2758.8,22.24498234]
[1740285738924,0.77130921,2758.9,2758.8,14.32905863]
[1740285739103,9.21e-06,2758.9,2758.8,15.97151268]
[1740285745936,9.21e-06,2758.9,2758.8,18.97151268]
[1740285751445,9.21e-06,2758.9,2758.8,17.07205863]
[1740285751630,9.21e-06,2758.9,2758.8,17.32905863]
[1740285751838,9.21e-06,2758.9,2758.8,21.41932234]
[1740285752342,9.21e-06,2758.9,2758.8,16.02932234]
[1740285755215,9.21e-06,2758.9,2758.8,15.77232234]
[1740285755416,9.21e-06,2758.9,2758.8,16.02932234]
[1740285759827,9.21e-06,2758.9,2758.8,10.97202371]
[1740285762334,9.21e-06,2758.9,2758.8,11.74742371]
[1740285763757,9.21e-06,2758.9,2758.8,10.97202371]
[1740285764255,9.21e-06,2758.9,2758.8,21.42640628]
[1740285765056,9.21e-06,2758.9,2758.8,16.36202371]
[1740285765654,9.21e-06,2758.9,2758.8,21.42640628]
[1740285766561,9.21e-06,2758.9,2758.8,16.36202371]
[1740285768671,9.21e-06,2758.9,2758.8,21.42640628]
[1740285769591,9.21e-06,2758.9,2758.8,22.20180628]
[1740285777139,9.21e-06,2758.9,2758.8,23.84426033]
[1740285777337,0.2,2761.0,2758.8,23.84426033]
[1740285777338,5.24,2760.8,2759.2,0.7943]
[1740285777548,5.24,2761.0,2760.3,3.62272]
[1740285777753,0.17256857,2760.7,2760.2,3.62291]
[1740285777966,1.64245405,2760.9,2760.2,3.62291]
[1740285778159,0.55,2760.8,2760.2,3.62286]
[1740285778369,0.55,2760.8,2760.2,7.24572]
[1740285778734,3.0,2760.9,2760.2,3.62285]
[1740285779252,5.24,2761.0,2759.9,5.54493141]
[1740285779253,5.24,2761.0,2760.3,1.64245405]
[1740285779769,0.55,2760.9,2760.4,3.62266]
[1740285779954,0.55,2760.9,2760.4,0.72192212]
[1740285780150,1.64245405,2761.1,2760.3,3.62272]
[1740285780363,0.763,2761.0,2760.4,3.6226]
[1740285780548,0.763,2760.8,2760.4,3.6226]
[1740285780857,0.763,2760.8,2760.4,3.5726]
[1740285781045,0.763,2760.8,2760.3,3.62272]
[1740285781240,0.763,2760.6,2760.3,3.62272]
[1740285781655,0.763,2760.4,2760.3,3.62272]
[1740285782071,0.9357039,2760.4,2760.3,3.62272]
[1740285782270,0.9357039,2760.4,2760.2,3.6229]
[1740285782477,0.9357039,2760.4,2760.2,3.62292]
[1740285782779,0.9357039,2760.4,2760.3,3.62279]
[1740285786981,0.9357039,2760.4,2760.3,5.26524405]
[1740285787182,0.763,2760.4,2760.3,5.26524405]
[1740285790182,3.0,2761.2,2760.3,5.26524405]
[1740285790183,0.763,2760.8,2760.7,3.62226]
[1740285790480,0.763,2760.8,2760.6,3.62238]
[1740285790781,0.763,2760.8,2760.7,3.62226]
[1740285791500,0.763,2760.8,2760.7,5.26471405]
[1740285792153,0.763,2761.2,2761.1,3.62174]
[1740285797385,0.93027701,2761.2,2761.1,3.62174]
[1740285801111,0.93027701,2761.2,2761.0,5.26431405]
[1740285801326,0.93027701,2761.2,2761.0,8.88611405]
[1740285801520,0.93027701,2761.2,2761.1,3.62174]
[1740285819758,0.93027701,2761.2,2761.0,1.64245405]
[1740285819957,0.93027701,2761.2,2761.0,5.26426405]
[1740285824587,0.16727701,2761.2,2761.1,3.62174]
[1740285824804,0.7897,2761.4,2761.1,3.62174]
[1740285825150,0.7897,2761.4,2761.0,5.26426405]
[1740285825383,0.16588547,2761.3,2761.0,5.26426405]
[1740285825584,0.16588547,2761.3,2761.1,3.62173]
[1740285825951,0.16588547,2761.3,2761.1,0.257]
[1740285827683,0.16588547,2761.3,2761.1,3.8787]
[1740285828179,0.16588547,2761.3,2761.1,0.257]
[1740285832858,0.7897,2761.2,2760.8,0.73042935]
[1740285833085,0.7897,2761.1,2760.6,1.64245405]
[1740285833286,0.7897,2761.1,2760.6,5.26481405]
[1740285833596,0.16591442,2761.0,2760.6,5.26481405]
[1740285836491,0.16591442,2761.0,2760.9,3.622]
[1740285836724,6.88245405,2761.9,2760.8,1.64245405]
[1740285836725,0.7813,2761.3,2760.8,1.64245405]
[1740285837017,0.16578197,2761.2,2760.8,1.64245405]
[1740285837212,0.7813,2761.3,2760.8,1.64245405]
[1740285837522,0.1657514,2761.1,2760.8,1.64245405]
[1740285837824,0.16572082,2761.0,2760.8,1.64245405]
[1740285838010,0.7813,2761.3,2760.8,1.64245405]
[1740285838213,0.16569023,2760.9,2760.8,1.64245405]
[1740285838413,0.7813,2761.3,2760.8,1.64245405]
[1740285838585,0.16569023,2760.9,2760.8,1.64245405]
[1740285838792,0.7813,2761.3,2760.8,1.64245405]
[1740285838990,0.16562245,2761.2,2760.8,1.64245405]
[1740285839192,0.7813,2761.3,2760.8,1.64245405]
[1740285839485,0.16562245,2761.2,2760.8,1.64245405]
[1740285839785,0.7813,2761.3,2760.8,1.64245405]
[1740285839990,0.16562245,2761.2,2760.8,1.64245405]
[1740285840190,0.7813,2761.3,2760.8,1.64245405]
[1740285840415,0.16562245,2761.2,2760.8,1.64245405]
[1740285840612,0.7813,2761.3,2760.8,1.64245405]
[1740285840816,0.16559187,2761.1,2760.8,1.64245405]
[1740285841011,0.7813,2761.3,2760.8,1.64245405]
[1740285841297,0.16556129,2761.0,2760.8,1.64245405]
[1740285841507,0.7813,2761.3,2760.8,1.64245405]
[1740285841716,0.16553071,2760.9,2760.8,1.64245405]
[1740285841927,0.7813,2761.3,2760.8,1.64245405]
[1740285842106,0.16553071,2760.9,2760.8,1.64245405]
[1740285842306,0.7813,2761.3,2760.8,1.64245405]
[1740285842520,0.16553071,2760.9,2760.8,1.64245405]
[1740285842715,0.7813,2761.3,2760.8,1.64245405]
[1740285843430,0.16562245,2761.2,2760.8,1.64245405]